bitfinex/quotes_ETHUSD_20250403
["timestamp","ask_amount","ask_price","bid_price","bid_amount"]
[1743714234333,5.56058,1798.4,1798.2,1.25931803]
[1743714234951,5.5608,1798.3,1798.2,0.70931803]
[1743714235154,5.56111,1798.2,1798.1,0.1737941]
[1743714235548,6.35331,1798.2,1798.1,0.1737941]
[1743714236666,11.91461,1798.2,1798.0,0.55]
[1743714237260,5.56142,1798.1,1798.0,0.55]
[1743714239258,11.12243,1798.2,1798.0,0.55]
[1743714239562,5.56111,1798.2,1798.0,0.55]
[1743714239866,5.56111,1798.2,1798.0,1.26053881]
[1743714240639,11.12239,1798.2,1798.0,1.26053881]
[1743714240831,11.12247,1798.2,1798.0,1.26053881]
[1743714241055,11.12247,1798.2,1798.0,0.55]
[1743714241250,5.56142,1798.1,1798.0,0.55]
[1743714244969,5.56111,1798.2,1798.0,0.55]
[1743714245337,6.35305,1798.3,1798.0,0.55]
[1743714245637,5.56123,1798.2,1798.0,0.55]
[1743714245841,11.12249,1798.2,1797.9,0.99340812]
[1743714246170,5.56146,1798.1,1797.9,3.21884883]
[1743714247665,5.56146,1798.1,1798.0,0.1737941]
[1743714248168,6.34736,1798.1,1798.0,0.1737941]
[1743714249069,6.34736,1798.1,1797.5,0.7922]
[1743714249070,5.56248,1797.8,1797.6,0.1737941]
[1743714250454,5.56248,1797.8,1797.5,6.35546]
[1743714250642,5.56248,1797.8,1797.7,0.17391824]
[1743714253748,6.36608,1797.8,1797.7,0.17391824]
[1743714255475,5.5628,1797.7,1797.4,0.17391824]
[1743714255678,5.563,1797.6,1797.4,0.17391824]
[1743714257570,5.56272,1797.7,1797.5,0.17391824]
[1743714257877,5.56297,1797.6,1797.5,0.17391824]
[1743714258681,11.12552,1797.7,1797.5,0.17391824]
[1743714259079,6.36602,1797.8,1797.5,0.17391824]
[1743714259282,11.12494,1797.8,1797.5,5.56318]
[1743714259482,11.12493,1797.8,1797.5,5.56318]
[1743714259659,11.12492,1797.8,1797.5,5.56318]
[1743714259877,11.12492,1797.8,1797.6,1.106318]
[1743714259878,5.56242,1797.8,1797.6,1.106318]
[1743714260300,5.56242,1797.8,1797.6,1.28023624]
[1743714260669,6.3657,1797.9,1797.6,2.09053624]
[1743714260962,6.00999,1798.3,1797.7,5.56265]
[1743714260963,11.12369,1798.0,1797.7,5.56265]
[1743714261298,11.12369,1798.0,1797.6,12.65980824]
[1743714261299,5.56205,1797.9,1797.6,12.65980824]
[1743714261521,5.56205,1797.9,1797.7,0.17391824]
[1743714262292,5.56173,1798.0,1797.8,0.55]
[1743714262478,5.56135,1798.2,1797.9,0.7578]
[1743714262684,5.56084,1798.3,1798.0,0.55]
[1743714262890,5.56084,1798.3,1798.0,11.67326]
[1743714263536,5.56084,1798.3,1798.0,6.11163]
[1743714264004,11.12182,1798.3,1798.0,6.11163]
[1743714264179,5.56084,1798.3,1798.1,0.17391824]
[1743714265098,5.56084,1798.3,1798.0,6.11163]
[1743714265411,5.56084,1798.3,1798.0,7.898317]
[1743714265709,6.33353,1798.4,1798.0,7.898267]
[1743714266053,5.56025,1798.5,1798.2,6.86882]
[1743714266594,6.3329,1798.6,1798.2,12.48537292]
[1743714266815,11.89295,1798.6,1798.2,12.42977]
[1743714267125,11.89295,1798.6,1798.3,1.242977]
[1743714267356,6.3329,1798.6,1798.3,6.803757]
[1743714267681,11.89296,1798.6,1798.3,6.803757]
[1743714268007,6.3329,1798.6,1798.3,6.803757]
[1743714268320,5.5599,1798.6,1798.3,6.803757]
[1743714268526,5.5599,1798.6,1798.4,0.6803757]
[1743714269328,11.11932,1798.7,1798.4,0.6803757]
[1743714269632,1.882027,1799.2,1798.5,11.54517129]
[1743714269933,11.11621,1799.2,1798.8,0.8041]
[1743714270081,5.55852,1799.1,1798.9,0.55]
[1743714270894,5.55895,1798.9,1798.8,0.8041]
[1743714271126,5.55895,1798.9,1798.8,0.55]
[1743714271410,5.55875,1799.0,1798.8,0.55]
[1743714271714,5.55875,1799.0,1798.8,1.0798469]
[1743714272717,5.55875,1799.0,1798.8,0.55]
[1743714272911,5.55895,1798.9,1798.8,0.55]
[1743714275884,11.11752,1799.0,1798.8,0.55]
[1743714276086,5.55895,1798.9,1798.8,0.55]
[1743714276689,5.55895,1798.9,1798.6,0.8041]
[1743714276889,6.32547,1798.7,1798.4,12.3345]
[1743714277121,6.32547,1798.7,1798.4,6.1745]
[1743714277419,5.56035,1798.5,1798.2,11.73543]
[1743714277587,11.1207,1798.5,1798.2,11.73543]
[1743714277787,5.56049,1798.4,1798.3,0.55]
[1743714280019,11.12081,1798.5,1798.3,0.55]
[1743714280224,5.56035,1798.5,1798.3,0.55]
[1743714280691,11.12072,1798.5,1798.3,0.55]
[1743714282319,5.56035,1798.5,1798.3,0.55]
[1743714283923,0.8223,1798.9,1798.4,0.7973]
[1743714284095,11.94042,1798.9,1798.5,6.11015]
[1743714284300,5.55929,1798.8,1798.5,6.11008]
[1743714285390,11.11875,1798.8,1798.5,0.55]
[1743714285590,5.5596,1798.7,1798.5,1.240772]
[1743714287427,5.55987,1798.6,1798.3,6.09576902]
[1743714287620,5.56033,1798.5,1798.3,6.7313]
[1743714287790,5.56033,1798.5,1798.3,5.9775]
[1743714288227,5.55991,1798.6,1798.3,6.0331021]
[1743714288519,5.56025,1798.5,1798.3,5.9775]
[1743714289323,11.12009,1798.6,1798.3,5.9775]
[1743714291018,11.11994,1798.6,1798.3,5.9775]
[1743714291227,11.11994,1798.6,1798.3,6.0331021]
[1743714291391,11.11994,1798.6,1798.3,5.9775]
[1743714292803,5.55991,1798.6,1798.3,11.59389208]
[1743714293000,5.55991,1798.6,1798.3,11.53829]
[1743714293923,11.11994,1798.6,1798.3,11.53829]
[1743714294125,5.55991,1798.6,1798.3,5.9775]
[1743714294450,5.56029,1798.5,1798.3,5.9775]
[1743714294601,5.56029,1798.5,1798.3,0.55]
[1743714296127,11.11996,1798.6,1798.3,0.55]
[1743714296325,5.56049,1798.4,1798.0,0.7538]
[1743714296517,5.56123,1798.2,1797.9,10.94597]
[1743714296696,5.56123,1798.2,1798.0,0.55]
[1743714298502,6.34499,1798.5,1798.1,6.31497]
[1743714298706,5.55859,1799.1,1798.0,1.699597]
[1743714298707,0.7847,1798.9,1798.4,5.56037]
[1743714298936,5.5594,1798.8,1798.5,6.31388]
[1743714300003,5.5594,1798.8,1798.6,0.55]
[1743714302138,5.55991,1798.6,1798.4,0.55]
[1743714302303,5.55991,1798.6,1798.0,17.89428]
[1743714302304,0.826,1798.5,1798.0,17.89428]
[1743714302503,5.56089,1798.3,1798.0,11.73428]
[1743714302708,11.12186,1798.3,1798.0,6.1728]
[1743714302939,5.56089,1798.3,1798.1,0.55]
[1743714303242,6.38629,1798.5,1798.0,8.3773289]
[1743714303408,5.56029,1798.5,1798.2,5.56097]
[1743714304239,0.7728,1798.7,1798.0,13.9390389]
[1743714304240,5.56063,1798.4,1798.0,13.9390389]
[1743714304440,5.56132,1798.2,1798.0,5.384]
[1743714307245,11.12261,1798.2,1798.0,5.384]
[1743714308219,5.56129,1798.2,1798.0,5.384]
[1743714309449,11.1226,1798.2,1797.9,0.55]
[1743714309818,5.56147,1798.1,1797.8,0.8166]
[1743714310022,5.56174,1798.0,1797.8,0.55]
[1743714310218,5.56174,1798.0,1797.7,21.25764902]
[1743714310532,5.56174,1798.0,1797.8,0.05561779]
[1743714310732,5.56174,1798.0,1797.8,0.55]
[1743714311255,11.1231,1798.1,1797.8,0.55]
[1743714311555,11.1231,1798.1,1797.8,0.6056178]
[1743714312457,5.56147,1798.1,1797.8,0.6056178]
[1743714313161,5.56117,1798.2,1797.8,8.62905499]
[1743714313461,5.56117,1798.2,1797.9,5.56193]
[1743714313669,11.12244,1798.2,1797.9,5.56193]
[1743714314753,5.56086,1798.3,1798.0,0.55]
[1743714314932,5.56086,1798.3,1798.0,6.11171]
[1743714315639,5.56086,1798.3,1798.0,0.55]
[1743714315954,5.56112,1798.2,1798.0,0.55]
[1743714316430,5.56142,1798.1,1797.9,5.384]
[1743714316630,5.56173,1798.0,1797.9,5.384]
[1743714316837,5.56173,1798.0,1797.8,0.55]
[1743714317345,11.12363,1798.0,1797.8,0.55]
[1743714317938,5.56204,1797.9,1797.8,0.55]
[1743714319039,11.12376,1798.0,1797.8,0.55]
[1743714319241,6.36142,1798.1,1797.8,6.11226]
[1743714319451,11.923,1798.1,1797.8,1.80280003]
[1743714319859,5.56173,1798.0,1797.8,1.80280003]
[1743714320025,6.36142,1798.1,1797.8,1.80280003]
[1743714320224,11.92312,1798.1,1797.8,1.80280003]
[1743714321227,5.56173,1798.0,1797.8,1.80280003]
[1743714323259,11.12369,1798.0,1797.8,0.55]
[1743714325357,5.56204,1797.9,1797.8,0.55]
[1743714326938,11.12374,1798.0,1797.8,0.55]
[1743714328973,5.56204,1797.9,1797.8,0.55]
[1743714330146,5.56173,1798.0,1797.8,0.55]
[1743714331669,5.56173,1798.0,1797.9,0.41823334]
[1743714331973,5.56173,1798.0,1797.8,0.55]
[1743714332268,5.56173,1798.0,1797.9,0.41813548]
[1743714332446,5.56173,1798.0,1797.8,0.55]
[1743714332651,5.56173,1798.0,1797.9,0.41813548]
[1743714332851,5.56173,1798.0,1797.8,0.55]
[1743714333052,5.56173,1798.0,1797.9,0.41813548]
[1743714333270,11.1236,1798.0,1797.8,0.55]
[1743714333570,11.1236,1798.0,1797.9,0.41813548]
[1743714333748,5.56173,1798.0,1797.9,0.41813548]
[1743714333950,5.56173,1798.0,1797.8,0.55]
[1743714334149,5.56173,1798.0,1797.9,0.41813548]
[1743714334549,5.56173,1798.0,1797.8,0.55]
[1743714334849,5.56173,1798.0,1797.9,0.41813548]
[1743714335051,5.56173,1798.0,1797.8,0.55]
[1743714335242,5.56173,1798.0,1797.9,0.41813548]
[1743714335442,5.56173,1798.0,1797.8,0.55]
[1743714335759,5.56199,1798.0,1797.9,0.41813548]
[1743714336139,5.56199,1798.0,1797.7,0.55]
[1743714336339,5.56215,1797.9,1797.7,0.55]
[1743714336762,11.12438,1797.9,1797.7,0.55]
[1743714336941,5.56235,1797.8,1797.7,0.55]
[1743714337867,5.56235,1797.8,1797.5,5.383]
[1743714337868,5.56296,1797.7,1797.5,5.383]
[1743714338076,5.56297,1797.6,1797.5,5.383]
[1743714338442,5.56297,1797.6,1797.5,5.933]
[1743714338644,5.56297,1797.6,1797.5,5.383]
[1743714338867,5.56297,1797.6,1797.5,5.933]
[1743714343279,5.56192,1798.0,1797.7,0.55]
[1743714343467,11.12251,1798.2,1797.9,0.55]
[1743714343845,11.12251,1798.2,1798.0,0.41669441]
[1743714344273,5.56142,1798.1,1798.0,0.96669441]
[1743714345183,5.56142,1798.1,1798.0,0.41669441]
[1743714345479,5.56202,1798.0,1797.8,0.55]
[1743714345858,11.12404,1798.0,1797.8,0.55]
[1743714346064,5.56204,1797.9,1797.8,0.55]
[1743714348187,5.55998,1798.6,1798.2,0.55]
[1743714348351,5.55998,1798.6,1798.4,0.55]
[1743714348547,5.55903,1798.9,1798.4,0.55]
[1743714348548,5.55929,1798.8,1798.5,0.8137]
[1743714348762,11.11875,1798.8,1798.6,0.55]
[1743714348984,5.55929,1798.8,1798.6,0.55]
[1743714349280,11.11873,1798.8,1798.6,0.55]
[1743714349682,5.55957,1798.7,1798.6,0.55]
[1743714349871,11.11873,1798.8,1798.6,0.55]
[1743714350078,5.55957,1798.7,1798.4,0.55]
[1743714350274,11.11943,1798.7,1798.4,1.242438]
[1743714350660,5.55957,1798.7,1798.4,1.242438]
[1743714351762,5.55957,1798.7,1798.4,6.802928]
[1743714352390,11.11933,1798.7,1798.4,1.242438]
[1743714352758,5.55957,1798.7,1798.4,1.242438]
[1743714353895,5.55957,1798.7,1798.4,6.802918]
[1743714354187,4.74846902,1799.1,1798.4,6.802918]
[1743714354188,5.55756,1799.4,1799.0,5.55847]
[1743714354389,5.55679,1799.6,1799.2,5.55801]
[1743714354557,5.55679,1799.6,1799.3,0.55]
[1743714355178,6.315,1799.7,1799.3,0.55]
[1743714355381,0.7585,1799.7,1799.3,11.52244941]
[1743714355576,5.55622,1799.8,1799.4,5.5573]
[1743714355785,11.11257,1799.8,1799.4,5.5573]
[1743714356156,6.96377,1799.9,1799.5,0.55]
[1743714356362,12.51981,1799.9,1799.5,6.10692]
[1743714357490,5.55628,1799.8,1799.5,0.55]
[1743714357689,5.55628,1799.8,1799.5,1.238539]
[1743714357893,0.611,1799.9,1799.7,5.29846902]
[1743714358313,0.611,1799.9,1799.8,0.39750026]
[1743714361021,0.611,1799.9,1799.8,5.95367026]
[1743714361200,0.611,1799.9,1799.8,12.09970882]
[1743714361496,0.611,1799.9,1799.8,12.04415419]
[1743714361700,5.55319,1800.8,1800.5,0.55]
[1743714361901,5.55319,1800.8,1800.5,6.56133292]
[1743714362065,5.55319,1800.8,1800.6,0.39435945]
[1743714362766,5.55339,1800.7,1800.6,0.94435945]
[1743714362967,6.36859,1800.7,1800.6,0.39435945]
[1743714363195,5.5545,1800.4,1800.0,11.70284]
[1743714363380,5.55478,1800.3,1800.2,0.55]
[1743714363589,5.5545,1800.4,1800.1,1.170284]
[1743714363898,5.55405,1800.5,1800.2,0.55]
[1743714364096,5.55405,1800.5,1800.2,6.10492]
[1743714364302,5.55373,1800.6,1800.2,6.1048]
[1743714364497,5.55373,1800.6,1800.2,7.8626753]
[1743714365204,11.107,1800.7,1800.4,0.55]
[1743714365402,5.55341,1800.7,1800.4,0.55]
[1743714365774,5.55311,1800.8,1800.4,0.55]
[1743714365976,5.55311,1800.8,1800.4,5.927]
[1743714366175,5.55311,1800.8,1800.4,7.6309079]
[1743714366500,5.55311,1800.8,1800.4,13.1850779]
[1743714366706,5.55311,1800.8,1800.4,18.7392479]
[1743714366876,6.42821,1800.9,1800.5,5.55397]
[1743714367071,0.05,1800.9,1800.7,0.55]
[1743714367308,0.05,1800.9,1800.7,11.543162]
[1743714367479,0.05,1800.9,1800.7,5.989922]
[1743714367672,5.60295,1800.9,1800.7,0.55]
[1743714368202,0.05,1800.9,1800.7,0.60552764]
[1743714368500,0.05,1800.9,1800.7,10.90720666]
[1743714368722,0.05,1800.9,1800.7,5.29846902]
[1743714369112,2.87915212,1801.9,1801.2,0.7851]
[1743714369317,2.04745212,1801.9,1801.8,10.84846902]
[1743714369631,2.04745212,1801.9,1801.8,19.34795987]
[1743714369788,0.005,1802.0,1801.9,9.89979]
[1743714369976,0.005,1802.0,1801.9,6.9143259]
[1743714370172,0.005,1802.0,1801.9,12.4640159]
[1743714372696,0.005,1802.0,1801.9,12.86998172]
[1743714372999,55.17188395,1803.0,1802.8,6.09692]
[1743714373197,55.17188395,1803.0,1802.8,15.43348224]
[1743714373421,55.17109395,1803.0,1802.9,9.09661]
[1743714373609,3.95e-06,1803.1,1803.0,9.09631]
[1743714373922,1e-05,1803.6,1803.5,9.89787]
[1743714374108,1e-05,1803.6,1803.5,15.46687]
[1743714374418,1e-05,1803.6,1803.5,12.88631422]
[1743714374587,1e-05,1803.6,1803.5,0.91319973]
[1743714374794,1e-05,1803.6,1803.5,0.36319973]
[1743714375029,1e-05,1803.6,1803.2,0.60544886]
[1743714375227,1e-05,1803.6,1803.5,0.36319973]
[1743714375390,1e-05,1803.6,1803.2,0.55]
[1743714375591,0.554942,1803.6,1803.5,0.36319973]
[1743714375786,1e-05,1803.6,1803.2,0.05545052]
[1743714376028,1e-05,1803.6,1803.5,0.36319973]
[1743714376251,1e-05,1803.6,1803.5,14.68677]
[1743714376428,1e-05,1803.6,1803.5,9.142]
[1743714376612,1e-05,1803.6,1803.5,9.50519973]
[1743714376787,1e-05,1803.6,1803.5,15.04996973]
[1743714376991,1e-05,1803.6,1803.5,6.50519973]
[1743714377400,1e-05,1803.6,1803.5,13.3362077]
[1743714377601,1e-05,1803.6,1803.5,16.3362077]
[1743714377889,1e-05,1803.6,1803.5,22.4962077]
[1743714378090,1e-05,1803.6,1803.5,23.3036077]
[1743714378422,0.005,1804.1,1804.0,9.09323]
[1743714378629,0.005,1804.1,1804.0,10.648667]
[1743714378807,0.005,1804.1,1804.0,9.52484093]
[1743714379122,0.05,1804.9,1804.0,6.52484093]
[1743714379123,5.54206,1804.4,1804.0,6.52484093]
[1743714379324,11.08432,1804.4,1804.0,5.97484093]
[1743714379496,6.37521,1804.5,1804.1,0.55]
[1743714379697,6.32521,1804.5,1804.2,0.33747352]
[1743714379914,1.969984,1804.5,1804.3,0.55]
[1743714380123,5.54098,1804.8,1804.3,0.94287457]
[1743714380335,5.54098,1804.8,1804.3,0.88745304]
[1743714380607,5.59048,1804.9,1804.3,0.88745304]
[1743714380824,0.05,1804.9,1804.5,0.55]
[1743714381241,5.54093,1804.8,1804.6,0.33753698]
[1743714381416,6.100023,1804.8,1804.6,0.33753698]
[1743714381619,5.54158,1804.6,1804.4,6.208]
[1743714381825,5.5417,1804.5,1804.4,5.658]
[1743714382132,5.542,1804.4,1804.1,5.665]
[1743714382341,11.08424,1804.4,1804.1,5.665]
[1743714382531,5.54251,1804.3,1804.1,5.665]
[1743714383412,5.54339,1804.0,1803.6,6.16]
[1743714383637,6.650724,1804.4,1803.6,0.41961823]
[1743714383841,11.08565,1804.2,1803.7,0.55]
[1743714384005,5.54308,1804.1,1803.7,0.55]
[1743714384210,5.54308,1804.1,1803.6,0.55]
[1743714384909,6.097388,1804.1,1803.6,0.55]
[1743714385113,0.554308,1804.1,1803.6,6.09445]
[1743714385306,5.54233,1804.3,1803.6,6.09429]
[1743714385535,11.08487,1804.3,1803.8,0.55]
[1743714385933,5.54202,1804.4,1804.0,0.55]
[1743714386118,11.08425,1804.4,1804.2,0.55]
[1743714386329,0.559093,1804.8,1804.4,0.55]
[1743714386507,5.54129,1804.7,1804.4,0.55]
[1743714387111,5.54191,1804.5,1804.3,5.67]
[1743714387345,5.54191,1804.5,1804.0,6.234]
[1743714387950,5.54203,1804.4,1804.0,6.234]
[1743714388116,5.54191,1804.5,1804.0,6.234]
[1743714388317,11.08387,1804.5,1804.1,0.27897028]
[1743714388526,1.108387,1804.5,1804.1,0.27897028]
[1743714388718,5.54262,1804.2,1804.1,0.27897028]
[1743714389314,5.54204,1804.4,1804.2,0.55]
[1743714389526,5.54171,1804.5,1804.2,0.55]
[1743714389818,5.54204,1804.4,1804.3,0.8056635]
[1743714390018,5.54171,1804.5,1804.3,0.8056635]
[1743714390921,11.08363,1804.5,1804.3,0.8056635]
[1743714391126,11.08307,1804.6,1804.3,0.8056635]
[1743714391326,5.54144,1804.6,1804.4,0.55]
[1743714391530,8.5905,1804.9,1804.4,0.25559373]
[1743714391531,5.54091,1804.8,1804.4,0.25559373]
[1743714391736,11.0824,1804.7,1804.4,5.675]
[1743714391925,5.5414,1804.6,1804.5,0.25557774]
[1743714392946,5.5414,1804.6,1804.2,0.55]
[1743714393147,5.54119,1804.7,1804.5,0.25556878]
[1743714393354,5.59056,1804.9,1804.6,0.55]
[1743714393519,11.13123,1804.9,1804.6,0.80555727]
[1743714393715,11.13122,1804.9,1804.6,0.80555727]
[1743714393915,11.1313,1804.9,1804.6,0.80555727]
[1743714394752,5.54082,1804.8,1804.6,0.80555727]
[1743714395754,11.13132,1804.9,1804.6,0.80555727]
[1743714395971,0.05,1804.9,1804.8,6.09078]
[1743714396172,0.05,1805.9,1805.1,0.1]
[1743714396456,0.05,1805.9,1805.8,4.3205]
[1743714396629,0.05,1805.9,1805.8,8.23797174]
[1743714396829,0.05,1805.9,1805.8,6.71129837]
[1743714397030,0.05,1805.9,1805.8,0.25529837]
[1743714397417,5.53832,1805.6,1805.4,0.03845985]
[1743714397623,5.53863,1805.5,1805.4,0.03845985]
[1743714398155,5.53863,1805.5,1805.2,45.89]
[1743714398650,5.53955,1805.2,1805.1,0.03845985]
[1743714398824,5.53947,1805.3,1805.1,0.03845985]
[1743714399023,5.53947,1805.3,1805.0,0.03845985]
[1743714399429,5.5387,1805.5,1805.1,0.55]
[1743714399636,5.53915,1805.4,1805.1,0.55]
[1743714399836,5.53915,1805.4,1805.1,0.58845985]
[1743714400253,6.36947,1805.7,1805.3,0.55]
[1743714400456,5.53835,1805.6,1805.2,0.55]
[1743714400825,5.53939,1805.3,1805.1,0.03845985]
[1743714401026,5.53955,1805.2,1805.1,0.03845985]
[1743714401341,5.53939,1805.3,1805.2,0.03845985]
[1743714401855,5.53939,1805.3,1805.1,0.03845985]
[1743714402155,5.53847,1805.6,1805.1,0.03845985]
[1743714402320,5.53908,1805.4,1805.1,0.03845985]
[1743714402525,11.07828,1805.4,1805.1,0.03845985]
[1743714402721,5.53908,1805.4,1805.3,0.03845985]
[1743714403231,5.53908,1805.4,1804.9,5.964]
[1743714403232,5.53908,1805.4,1805.1,0.03845985]
[1743714403426,11.07827,1805.4,1805.3,0.24486155]
[1743714403784,5.53936,1805.3,1805.1,0.03845985]
[1743714403960,5.53931,1805.3,1805.1,0.03845985]
[1743714404156,5.53845,1805.6,1805.2,0.55]
[1743714404356,5.53803,1805.7,1805.4,0.55]
[1743714404657,5.53783,1805.8,1805.5,0.0553788]
[1743714404856,5.58743,1805.9,1805.5,0.0553788]
[1743714405257,5.58743,1805.9,1805.6,0.03845985]
[1743714405656,0.05,1805.9,1805.7,6.53]
[1743714405858,0.05,1805.9,1805.8,10.5901776]
[1743714406063,0.05,1805.9,1805.8,16.7501776]
[1743714406367,0.05,1805.9,1805.8,16.69481]
[1743714406560,0.16814617,1806.5,1806.0,3.7941]
[1743714406765,0.16814617,1806.5,1806.3,15.12086493]
[1743714406927,0.16814617,1806.5,1806.3,11.65041742]
[1743714407260,5.57371761,1806.4,1806.2,6.01]
[1743714407426,5.53617,1806.3,1806.2,6.01]
[1743714407627,11.10980761,1806.4,1806.2,6.01]
[1743714407826,11.10978761,1806.4,1806.2,6.01]
[1743714408148,0.03772761,1806.4,1806.2,6.01]
[1743714408354,5.53617,1806.3,1806.2,6.01]
[1743714409362,5.53617,1806.3,1806.2,6.05362672]
[1743714409864,6.64714876,1806.3,1806.2,0.04362672]
[1743714410065,6.64714876,1806.3,1806.1,0.04362672]
[1743714410066,5.53617,1806.3,1806.1,0.04362672]
[1743714410652,11.07256,1806.3,1806.1,0.59362672]
[1743714410855,5.53648,1806.2,1806.1,0.59362672]
[1743714411044,0.03772761,1806.4,1806.2,0.55]
[1743714411239,0.03772761,1806.4,1806.2,7.41655694]
[1743714411452,0.03772761,1806.4,1806.2,8.71624131]
[1743714411767,0.03772761,1806.4,1806.2,8.71623681]
[1743714412151,0.03772761,1806.4,1806.2,14.25269681]
[1743714412351,0.03772761,1806.4,1806.2,14.19734437]
[1743714412775,0.03772761,1806.4,1806.3,6.08617]
[1743714412964,0.03772761,1806.4,1806.3,8.11450644]
[1743714413374,0.03772761,1806.4,1806.3,13.41044567]
[1743714413672,0.03772761,1806.4,1806.3,13.35510137]
[1743714414072,0.03772761,1806.4,1806.3,19.51510137]
[1743714414260,0.03772761,1806.4,1806.3,23.28900137]
[1743714414468,0.05,1806.9,1806.5,0.7739]
[1743714414644,0.05,1806.9,1806.8,15.09913493]
[1743714414838,0.05,1806.9,1806.8,9.40829649]
[1743714415067,0.05,1806.9,1806.8,7.3449]
[1743714415270,0.05,1806.9,1806.8,6.571]
[1743714415778,0.05,1806.9,1806.8,6.61444777]
[1743714416288,0.05,1806.9,1806.8,6.66978418]
[1743714416573,5.58434,1806.9,1806.8,6.61444777]
[1743714416753,5.58434,1806.9,1806.8,6.571]
[1743714416949,0.05,1806.9,1806.8,7.23244478]
[1743714417362,5.58434,1806.9,1806.8,6.021]
[1743714417581,5.58434,1806.9,1806.8,6.05744777]
[1743714418399,5.58434,1806.9,1806.8,6.014]
[1743714418585,0.05,1806.9,1806.8,6.564]
[1743714419091,0.05,1806.9,1806.8,6.7403656]
[1743714419268,0.05,1806.9,1806.8,7.41440216]
[1743714419467,0.03875852,1807.1,1807.0,8.53403]
[1743714419669,0.03875852,1807.1,1807.0,9.59659493]
[1743714419886,0.03875852,1807.1,1807.0,21.35891615]
[1743714420489,0.03875852,1807.1,1807.0,21.78037552]
[1743714420694,0.03875852,1807.1,1807.0,24.51183407]
[1743714421715,0.03875852,1807.1,1807.0,0.17629122]
[1743714421871,0.03875852,1807.1,1807.0,6.27661868]
[1743714422058,0.03875852,1807.1,1807.0,6.82661868]
[1743714422263,5.57247852,1807.1,1807.0,6.82661868]
[1743714422659,0.03875852,1807.1,1807.0,6.87006175]
[1743714423119,0.03875852,1807.1,1807.0,7.55706793]
[1743714423415,5.57247852,1807.1,1807.0,6.82661868]
[1743714423622,0.03875852,1807.1,1807.0,6.82661868]
[1743714423984,0.03875852,1807.1,1807.0,12.30532122]
[1743714424171,0.03875852,1807.1,1807.0,6.77129122]
[1743714424766,0.03875852,1807.1,1807.0,0.72629122]
[1743714424977,0.03875852,1807.1,1807.0,1.96834134]
[1743714425292,0.03875852,1807.1,1807.0,7.99434134]
[1743714425506,0.03875852,1807.1,1807.0,8.04967073]
[1743714425680,0.03875852,1807.1,1807.0,7.99434134]
[1743714426209,5.57247852,1807.1,1807.0,0.21977461]
[1743714426413,5.53602,1806.4,1805.9,6.8163]
[1743714426910,5.53643,1806.3,1805.9,6.064]
[1743714427273,5.5366,1806.2,1805.9,6.064]
[1743714427472,5.5366,1806.2,1805.8,6.058]
[1743714427668,5.5366,1806.2,1805.9,0.6058]
[1743714428099,11.07257,1806.3,1805.9,0.6058]
[1743714428307,5.53668,1806.2,1805.9,0.6058]
[1743714428622,5.53679,1806.1,1805.9,0.6058]
[1743714429014,5.53656,1806.2,1805.9,0.6058]
[1743714429408,5.53696,1806.1,1805.9,0.6058]
[1743714429633,11.07403,1806.1,1805.9,0.6058]
[1743714429943,11.07403,1806.1,1805.8,6.058]
[1743714429944,11.07463,1806.0,1805.8,6.058]
[1743714430232,0.7811,1806.5,1805.8,6.058]
[1743714430413,5.5368,1806.1,1805.8,6.058]
[1743714430613,5.53665,1806.2,1805.8,6.058]
[1743714430936,11.07344,1806.2,1805.8,6.7188]
[1743714431135,5.53689,1806.1,1805.8,6.7188]
[1743714431505,5.53689,1806.1,1805.9,0.05536754]
[1743714431709,5.53689,1806.1,1805.8,6.7188]
[1743714432434,5.53649,1806.2,1805.9,0.05536769]
[1743714432646,5.53716,1806.0,1805.8,6.6838]
[1743714432807,5.53716,1806.0,1805.8,6.73916732]
[1743714433441,5.53716,1806.0,1805.8,6.6838]
[1743714433824,11.07438,1806.0,1805.8,6.023]
[1743714434032,5.53793,1805.8,1805.6,0.55]
[1743714434231,5.53801,1805.7,1805.5,45.872]
[1743714434543,5.53801,1805.7,1805.5,6.013]
[1743714434845,11.07622,1805.7,1805.5,6.013]
[1743714435016,5.53801,1805.7,1805.5,6.013]
[1743714435217,5.53801,1805.7,1805.5,6.06838028]
[1743714435618,5.53801,1805.7,1805.5,6.06838029]
[1743714436045,5.53801,1805.7,1805.5,0.05538029]
[1743714436544,11.07623,1805.7,1805.4,8.3981881]
[1743714436714,5.53801,1805.7,1805.4,9.37122691]
[1743714436910,0.8164,1806.0,1805.5,0.60538029]
[1743714436911,5.53777,1805.8,1805.5,0.60538029]
[1743714437145,5.5371,1806.0,1805.7,0.55]
[1743714437342,11.0744,1806.0,1805.6,0.55]
[1743714437515,5.5371,1806.0,1805.6,0.55]
[1743714437843,5.5371,1806.0,1805.6,1.76807095]
[1743714438048,5.53742,1805.9,1805.6,1.7127]
[1743714438244,5.53742,1805.9,1805.5,0.55]
[1743714438545,5.53783,1805.8,1805.5,0.55]
[1743714438850,11.07509,1805.9,1805.6,0.0553725]
[1743714439055,5.53742,1805.9,1805.6,0.0553725]
[1743714439649,5.53772,1805.8,1805.6,0.0553725]
[1743714439845,11.07561,1805.8,1805.6,0.0553725]
[1743714440052,5.53804,1805.7,1805.5,6.547]
[1743714440722,5.53804,1805.7,1805.5,6.548]
[1743714440922,5.53772,1805.8,1805.5,6.548]
[1743714441217,0.8087,1805.7,1805.4,9.52522691]